[Event "Titled Tuesday Blitz April 11 Early 2023"]
[White "Berezin, Viktor"]
[Black "Nakamura, Hikaru"]
[WhiteFideId "14107872"]
[BlackFideId "2016192"]
[WhiteElo "2310"]
[BlackElo "2885"]
[Result "0-1"]
[Round "01"]
[TimeControl "180+2"]
[Date "2023.04.11"]
[WhiteClock "0:00:16"]
[BlackClock "0:00:15"]

1. d4 {[%clk 0:02:59]}  f5 {[%clk 0:02:55]} 2. g3 {[%clk 0:02:59]}  Nf6 {[%clk 0:02:55]} 3. Bg2 {[%clk 0:02:59]}  g6 {[%clk 0:02:55]} 4. Nh3 {[%clk 0:02:59]}  d6 {[%clk 0:02:52]} 5. c3 {[%clk 0:02:57]}  c6 {[%clk 0:02:48]} 6. Qb3 {[%clk 0:02:52]}  Qb6 {[%clk 0:02:47]} 7. Nd2 {[%clk 0:02:46]}  Bg7 {[%clk 0:02:43]} 8. Nf4 {[%clk 0:02:41]}  Na6 {[%clk 0:02:35]} 9. h4 {[%clk 0:02:37]}  Nc7 {[%clk 0:02:29]} 10. h5 {[%clk 0:02:27]}  g5 {[%clk 0:02:28]} 11. h6 {[%clk 0:02:23]}  Bf8 {[%clk 0:02:28]} 12. Nd3 {[%clk 0:02:21]}  Rg8 {[%clk 0:02:16]} 13. e4 {[%clk 0:02:08]}  Rg6 {[%clk 0:02:09]} 14. e5 {[%clk 0:01:38]}  Nd7 {[%clk 0:01:53]} 15. Qc2 {[%clk 0:01:33]}  d5 {[%clk 0:01:49]} 16. Nf3 {[%clk 0:01:15]}  Bxh6 {[%clk 0:01:49]} 17. e6 {[%clk 0:01:15]}  Rxe6+ {[%clk 0:01:45]} 18. Nde5 {[%clk 0:01:13]}  Nxe5 {[%clk 0:01:42]} 19. Nxe5 {[%clk 0:01:13]}  Rf6 {[%clk 0:01:35]} 20. Qe2 {[%clk 0:01:05]}  Ne6 {[%clk 0:01:06]} 21. Qh5+ {[%clk 0:00:45]}  Kf8 {[%clk 0:01:05]} 22. Nf3 {[%clk 0:00:34]}  f4 {[%clk 0:00:55]} 23. Ne5 {[%clk 0:00:33]}  Ng7 {[%clk 0:00:50]} 24. Qe2 {[%clk 0:00:33]}  Qa6 {[%clk 0:00:45]} 25. Qxa6 {[%clk 0:00:25]}  bxa6 {[%clk 0:00:46]} 26. Bd2 {[%clk 0:00:24]}  Nf5 {[%clk 0:00:40]} 27. gxf4 {[%clk 0:00:23]}  gxf4 {[%clk 0:00:41]} 28. Bf3 {[%clk 0:00:23]}  Nd6 {[%clk 0:00:37]} 29. O-O-O {[%clk 0:00:23]}  Ne4 {[%clk 0:00:36]} 30. Rh2 {[%clk 0:00:19]}  Bf5 {[%clk 0:00:35]} 31. Rdh1 {[%clk 0:00:19]}  Bg5 {[%clk 0:00:35]} 32. Rg1 {[%clk 0:00:17]}  h6 {[%clk 0:00:27]} 33. Bg4 {[%clk 0:00:16]}  Bxg4 {[%clk 0:00:20]} 34. Nxg4 {[%clk 0:00:17]}  Re6 {[%clk 0:00:19]} 35. f3 {[%clk 0:00:15]}  Nxd2 {[%clk 0:00:18]} 36. Kxd2 {[%clk 0:00:16]}  a5 {[%clk 0:00:17]} 37. a4 {[%clk 0:00:16]}  Rb8 {[%clk 0:00:16]} 38. Kd3 {[%clk 0:00:16]}  Rc8 {[%clk 0:00:16]} 39. Ne5 {[%clk 0:00:17]}  Kg7 {[%clk 0:00:16]} 40. Rhg2 {[%clk 0:00:17]}  c5 {[%clk 0:00:17]} 41. Rg4 {[%clk 0:00:16]}  cxd4 {[%clk 0:00:17]} 42. cxd4 {[%clk 0:00:17]}  Rb6 {[%clk 0:00:17]} 43. Rxf4 {[%clk 0:00:17]}  Rb3+ {[%clk 0:00:17]} 44. Ke2 {[%clk 0:00:17]}  Rc2+ {[%clk 0:00:17]} 45. Kd1 {[%clk 0:00:17]}  Rcxb2 {[%clk 0:00:17]} 46. Rf7+ {[%clk 0:00:17]}  Kg8 {[%clk 0:00:18]} 47. Rxe7 {[%clk 0:00:15]}  Rd2+ {[%clk 0:00:14]} 48. Ke1 {[%clk 0:00:16]}  Rb1# {[%clk 0:00:15]} 0-1


[Site "https://www.chess.com"]

[Event "Titled Tuesday Blitz April 11 Early 2023"]
[White "So, Wesley"]
[Black "Arpita, Mukherjee"]
[WhiteFideId "5202213"]
[BlackFideId "5056403"]
[WhiteElo "2749"]
[BlackElo "2129"]
[Result "1-0"]
[Round "01"]
[TimeControl "180+2"]
[Date "2023.04.11"]
[WhiteClock "0:01:20"]
[BlackClock "0:00:01"]

1. e4 {[%clk 0:02:46]}  c5 {[%clk 0:02:59]} 2. Nf3 {[%clk 0:02:46]}  d6 {[%clk 0:02:59]} 3. c3 {[%clk 0:02:44]}  Nf6 {[%clk 0:02:58]} 4. Bb5+ {[%clk 0:02:42]}  Bd7 {[%clk 0:02:49]} 5. Qe2 {[%clk 0:02:39]}  g6 {[%clk 0:02:45]} 6. d4 {[%clk 0:02:37]}  cxd4 {[%clk 0:02:31]} 7. cxd4 {[%clk 0:02:37]}  Bg7 {[%clk 0:02:30]} 8. Nc3 {[%clk 0:02:31]}  O-O {[%clk 0:02:27]} 9. Bxd7 {[%clk 0:02:27]}  Nfxd7 {[%clk 0:02:25]} 10. O-O {[%clk 0:02:23]}  Nc6 {[%clk 0:02:24]} 11. Rd1 {[%clk 0:02:24]}  a6 {[%clk 0:02:07]} 12. Be3 {[%clk 0:02:21]}  b5 {[%clk 0:02:06]} 13. Rac1 {[%clk 0:02:18]}  Rc8 {[%clk 0:01:55]} 14. a4 {[%clk 0:02:18]}  b4 {[%clk 0:01:49]} 15. Nb1 {[%clk 0:02:16]}  a5 {[%clk 0:01:40]} 16. Nbd2 {[%clk 0:02:15]}  e6 {[%clk 0:01:28]} 17. Qb5 {[%clk 0:02:11]}  Ndb8 {[%clk 0:01:01]} 18. b3 {[%clk 0:02:07]}  d5 {[%clk 0:00:45]} 19. exd5 {[%clk 0:02:01]}  Qxd5 {[%clk 0:00:43]} 20. Qxd5 {[%clk 0:01:59]}  exd5 {[%clk 0:00:44]} 21. Rc5 {[%clk 0:01:59]}  Ne7 {[%clk 0:00:42]} 22. Rxa5 {[%clk 0:01:58]}  Rc3 {[%clk 0:00:39]} 23. Rb5 {[%clk 0:01:54]}  Nbc6 {[%clk 0:00:40]} 24. h3 {[%clk 0:01:50]}  Rd8 {[%clk 0:00:36]} 25. g4 {[%clk 0:01:46]}  h6 {[%clk 0:00:29]} 26. Kg2 {[%clk 0:01:43]}  Nc8 {[%clk 0:00:24]} 27. Rb1 {[%clk 0:01:41]}  N8a7 {[%clk 0:00:18]} 28. Rb7 {[%clk 0:01:40]}  Rb8 {[%clk 0:00:16]} 29. Rd7 {[%clk 0:01:39]}  Re8 {[%clk 0:00:15]} 30. Rxd5 {[%clk 0:01:38]}  Rc2 {[%clk 0:00:06]} 31. Rd7 {[%clk 0:01:37]}  Nc8 {[%clk 0:00:06]} 32. Nc4 {[%clk 0:01:32]}  N8e7 {[%clk 0:00:05]} 33. d5 {[%clk 0:01:31]}  Nb8 {[%clk 0:00:02]} 34. Rd6 {[%clk 0:01:32]}  Nc8 {[%clk 0:00:03]} 35. Nd4 {[%clk 0:01:26]}  Rxc4 {[%clk 0:00:02]} 36. bxc4 {[%clk 0:01:21]}  Nxd6 {[%clk 0:00:02]} 37. Rxb4 {[%clk 0:01:22]}  Na6 {[%clk 0:00:03]} 38. Rb6 {[%clk 0:01:22]}  Nxc4 {[%clk 0:00:01]} 39. Rxa6 {[%clk 0:01:22]}  Nxe3+ {[%clk 0:00:02]} 40. fxe3 {[%clk 0:01:23]}  Rxe3 {[%clk 0:00:03]} 41. d6 {[%clk 0:01:20]}  Rd3 {[%clk 0:00:01]} 42. d7 {[%clk 0:01:19]}  Rxd4 {[%clk 0:00:01]} 43. Ra8+ {[%clk 0:01:19]}  Kh7 {[%clk 0:00:01]} 44. d8=Q {[%clk 0:01:20]} 1-0


[Site "https://www.chess.com"]

[Event "Titled Tuesday Blitz April 11 Early 2023"]
[White "Lehtosaari, Mauri"]
[Black "Andreikin, Dmitry"]
[WhiteFideId "501999"]
[BlackFideId "4158814"]
[WhiteElo "2538"]
[BlackElo "2736"]
[Result "0-1"]
[Round "01"]
[TimeControl "180+2"]
[Date "2023.04.11"]
[WhiteClock "0:00:03"]
[BlackClock "0:01:16"]

1. d4 {[%clk 0:02:55]}  Nf6 {[%clk 0:02:58]} 2. Nf3 {[%clk 0:02:55]}  e6 {[%clk 0:02:58]} 3. Bg5 {[%clk 0:02:55]}  h6 {[%clk 0:02:57]} 4. Bxf6 {[%clk 0:02:52]}  Qxf6 {[%clk 0:02:56]} 5. Nbd2 {[%clk 0:02:52]}  d6 {[%clk 0:02:56]} 6. e4 {[%clk 0:02:52]}  Nd7 {[%clk 0:02:52]} 7. Bd3 {[%clk 0:02:52]}  g5 {[%clk 0:02:52]} 8. h3 {[%clk 0:02:48]}  Bg7 {[%clk 0:02:52]} 9. c3 {[%clk 0:02:48]}  a6 {[%clk 0:02:51]} 10. Qe2 {[%clk 0:02:46]}  Qe7 {[%clk 0:02:48]} 11. Nf1 {[%clk 0:02:12]}  b6 {[%clk 0:02:32]} 12. Ng3 {[%clk 0:02:11]}  h5 {[%clk 0:02:31]} 13. O-O-O {[%clk 0:01:39]}  Bb7 {[%clk 0:02:30]} 14. Kb1 {[%clk 0:01:37]}  h4 {[%clk 0:02:22]} 15. Nf1 {[%clk 0:01:34]}  c5 {[%clk 0:02:21]} 16. Ne3 {[%clk 0:01:30]}  b5 {[%clk 0:02:21]} 17. Bc2 {[%clk 0:01:01]}  Nb6 {[%clk 0:02:16]} 18. dxc5 {[%clk 0:00:58]}  dxc5 {[%clk 0:02:16]} 19. Ng4 {[%clk 0:00:54]}  b4 {[%clk 0:01:59]} 20. cxb4 {[%clk 0:00:47]}  c4 {[%clk 0:01:59]} 21. e5 {[%clk 0:00:44]}  Qxb4 {[%clk 0:01:58]} 22. Be4 {[%clk 0:00:31]}  Na4 {[%clk 0:01:30]} 23. a3 {[%clk 0:00:03]}  Nc3+ {[%clk 0:01:15]} 24. Ka1 {[%clk 0:00:04]}  Nxe2 {[%clk 0:01:15]} 25. axb4 {[%clk 0:00:03]}  Bxe4 {[%clk 0:01:16]} 26. Rhe1 {[%clk 0:00:02]}  Bxf3 {[%clk 0:01:16]} 27. gxf3 {[%clk 0:00:03]}  Nf4 {[%clk 0:01:16]} 28. Nf6+ {[%clk 0:00:02]}  Bxf6 {[%clk 0:01:16]} 29. exf6 {[%clk 0:00:03]} 0-1


[Site "https://www.chess.com"]

[Event "Titled Tuesday Blitz April 11 Early 2023"]
[White "Bortnyk, Olexandr"]
[Black "Jimenez Almeida, Luis David"]
[WhiteFideId "14120828"]
[BlackFideId "22242244"]
[WhiteElo "2734"]
[BlackElo "2245"]
[Result "1-0"]
[Round "01"]
[TimeControl "180+2"]
[Date "2023.04.11"]
[WhiteClock "0:00:33"]
[BlackClock "0:00:03"]

1. d4 {[%clk 0:03:00]}  g6 {[%clk 0:02:55]} 2. Nc3 {[%clk 0:02:56]}  d5 {[%clk 0:02:51]} 3. Bf4 {[%clk 0:02:55]}  Nf6 {[%clk 0:02:51]} 4. e3 {[%clk 0:02:55]}  a6 {[%clk 0:02:51]} 5. h4 {[%clk 0:02:55]}  h5 {[%clk 0:02:51]} 6. Nf3 {[%clk 0:02:50]}  b5 {[%clk 0:02:50]} 7. a3 {[%clk 0:02:46]}  Bg7 {[%clk 0:02:49]} 8. Ne5 {[%clk 0:02:43]}  Bb7 {[%clk 0:02:47]} 9. Bd3 {[%clk 0:02:42]}  Ne4 {[%clk 0:02:41]} 10. Qf3 {[%clk 0:02:36]}  O-O {[%clk 0:01:32]} 11. Nxe4 {[%clk 0:02:32]}  dxe4 {[%clk 0:01:33]} 12. Bxe4 {[%clk 0:02:33]}  Bxe4 {[%clk 0:01:30]} 13. Qxe4 {[%clk 0:02:34]}  Nd7 {[%clk 0:01:18]} 14. Nc6 {[%clk 0:02:33]}  Nf6 {[%clk 0:01:18]} 15. Qxe7 {[%clk 0:02:29]}  Qd5 {[%clk 0:01:18]} 16. Qxc7 {[%clk 0:02:15]}  Qxg2 {[%clk 0:01:15]} 17. O-O-O {[%clk 0:02:15]}  Kh7 {[%clk 0:01:06]} 18. Rh2 {[%clk 0:02:06]}  Qd5 {[%clk 0:01:00]} 19. Nb4 {[%clk 0:02:05]}  Qf3 {[%clk 0:00:56]} 20. Qc6 {[%clk 0:01:56]}  Ne4 {[%clk 0:00:53]} 21. Nd3 {[%clk 0:01:45]}  Rac8 {[%clk 0:00:47]} 22. Bc7 {[%clk 0:01:40]}  Qf5 {[%clk 0:00:24]} 23. Qb7 {[%clk 0:01:22]}  Nf6 {[%clk 0:00:18]} 24. Bd6 {[%clk 0:01:13]}  Rfd8 {[%clk 0:00:16]} 25. Be7 {[%clk 0:01:13]}  Re8 {[%clk 0:00:10]} 26. Bxf6 {[%clk 0:01:13]}  Qxf6 {[%clk 0:00:10]} 27. Kb1 {[%clk 0:01:05]}  a5 {[%clk 0:00:09]} 28. Qxb5 {[%clk 0:01:05]}  Rb8 {[%clk 0:00:08]} 29. Qxa5 {[%clk 0:01:05]}  Qf3 {[%clk 0:00:08]} 30. Rg1 {[%clk 0:01:03]}  Qe2 {[%clk 0:00:07]} 31. Qe1 {[%clk 0:00:59]}  Qf3 {[%clk 0:00:08]} 32. Rhg2 {[%clk 0:00:56]}  Rec8 {[%clk 0:00:07]} 33. Qd1 {[%clk 0:00:54]}  Qc6 {[%clk 0:00:07]} 34. Rg5 {[%clk 0:00:52]}  Qb6 {[%clk 0:00:07]} 35. f4 {[%clk 0:00:46]}  Rc3 {[%clk 0:00:07]} 36. Rxh5+ {[%clk 0:00:32]}  gxh5 {[%clk 0:00:06]} 37. Qxh5+ {[%clk 0:00:33]}  Kg8 {[%clk 0:00:06]} 38. Qe5 {[%clk 0:00:33]}  f6 {[%clk 0:00:03]} 39. Qe7 {[%clk 0:00:33]} 1-0


[Site "https://www.chess.com"]

[Event "Titled Tuesday Blitz April 11 Early 2023"]
[White "Krishnan, Varun"]
[Black "Hakobyan, Aram"]
[WhiteFideId "5054508"]
[BlackFideId "13306677"]
[WhiteElo "2533"]
[BlackElo "2584"]
[Result "0-1"]
[Round "01"]
[TimeControl "180+2"]
[Date "2023.04.11"]
[WhiteClock "0:00:01"]
[BlackClock "0:00:33"]

1. e4 {[%clk 0:02:59]}  g6 {[%clk 0:02:57]} 2. d4 {[%clk 0:02:55]}  Bg7 {[%clk 0:02:58]} 3. Nc3 {[%clk 0:02:54]}  c5 {[%clk 0:02:58]} 4. d5 {[%clk 0:02:44]}  d6 {[%clk 0:02:58]} 5. Nf3 {[%clk 0:02:37]}  Nf6 {[%clk 0:02:58]} 6. h3 {[%clk 0:02:36]}  O-O {[%clk 0:02:58]} 7. Be2 {[%clk 0:02:36]}  b5 {[%clk 0:02:53]} 8. Nxb5 {[%clk 0:02:12]}  Nxe4 {[%clk 0:02:51]} 9. O-O {[%clk 0:02:12]}  Nd7 {[%clk 0:02:46]} 10. a4 {[%clk 0:02:10]}  Bb7 {[%clk 0:02:34]} 11. a5 {[%clk 0:01:57]}  a6 {[%clk 0:02:31]} 12. Na3 {[%clk 0:01:53]}  Ndf6 {[%clk 0:02:23]} 13. c4 {[%clk 0:01:39]}  Qxa5 {[%clk 0:02:21]} 14. Nd2 {[%clk 0:01:36]}  Qb6 {[%clk 0:02:16]} 15. Nxe4 {[%clk 0:01:35]}  Nxe4 {[%clk 0:02:15]} 16. Qc2 {[%clk 0:01:34]}  Nf6 {[%clk 0:02:10]} 17. Bd2 {[%clk 0:01:31]}  e6 {[%clk 0:02:08]} 18. dxe6 {[%clk 0:01:29]}  fxe6 {[%clk 0:02:08]} 19. Bc3 {[%clk 0:01:29]}  d5 {[%clk 0:02:05]} 20. cxd5 {[%clk 0:01:29]}  exd5 {[%clk 0:02:05]} 21. Bf3 {[%clk 0:01:29]}  Qc7 {[%clk 0:01:19]} 22. Bd4 {[%clk 0:01:14]}  Rac8 {[%clk 0:01:13]} 23. Rac1 {[%clk 0:01:09]}  Nd7 {[%clk 0:01:12]} 24. Bxg7 {[%clk 0:01:06]}  Kxg7 {[%clk 0:01:13]} 25. Rfd1 {[%clk 0:01:04]}  Rxf3 {[%clk 0:01:10]} 26. gxf3 {[%clk 0:01:03]}  Ne5 {[%clk 0:01:11]} 27. Qe2 {[%clk 0:00:24]}  d4 {[%clk 0:01:02]} 28. f4 {[%clk 0:00:24]}  Nf3+ {[%clk 0:01:01]} 29. Kf1 {[%clk 0:00:25]}  Qd7 {[%clk 0:00:54]} 30. f5 {[%clk 0:00:18]}  Re8 {[%clk 0:00:47]} 31. Qd3 {[%clk 0:00:05]}  Be4 {[%clk 0:00:47]} 32. Qb3 {[%clk 0:00:05]}  Qxf5 {[%clk 0:00:46]} 33. Kg2 {[%clk 0:00:03]}  Qg5+ {[%clk 0:00:40]} 34. Kf1 {[%clk 0:00:02]}  Nh2+ {[%clk 0:00:36]} 35. Ke2 {[%clk 0:00:01]}  Bd5+ {[%clk 0:00:36]} 36. Kd3 {[%clk 0:00:01]}  Qf5+ {[%clk 0:00:33]} 37. Kd2 {[%clk 0:00:01]}  Qxf2+ {[%clk 0:00:33]} 38. Kd3 {[%clk 0:00:01]}  Qe2# {[%clk 0:00:33]} 0-1


[Site "https://www.chess.com"]

[Event "Titled Tuesday Blitz April 11 Early 2023"]
[White "Tabatabaei, M. Amin"]
[Black "Dobre, Claudiu-Cristian"]
[WhiteFideId "12521213"]
[BlackFideId "1211854"]
[WhiteElo "2575"]
[BlackElo "2207"]
[Result "1-0"]
[Round "01"]
[TimeControl "180+2"]
[Date "2023.04.11"]
[WhiteClock "0:02:01"]
[BlackClock "0:00:01"]

1. d4 {[%clk 0:02:58]}  d5 {[%clk 0:02:59]} 2. c4 {[%clk 0:02:57]}  c6 {[%clk 0:02:59]} 3. Nf3 {[%clk 0:02:56]}  Nf6 {[%clk 0:02:59]} 4. cxd5 {[%clk 0:02:55]}  cxd5 {[%clk 0:02:58]} 5. Nc3 {[%clk 0:02:56]}  Nc6 {[%clk 0:02:57]} 6. Bf4 {[%clk 0:02:56]}  Bf5 {[%clk 0:02:57]} 7. Qb3 {[%clk 0:02:57]}  Na5 {[%clk 0:02:52]} 8. Qa4+ {[%clk 0:02:57]}  Bd7 {[%clk 0:02:52]} 9. Qc2 {[%clk 0:02:57]}  e6 {[%clk 0:02:48]} 10. e3 {[%clk 0:02:58]}  Rc8 {[%clk 0:02:42]} 11. Bd3 {[%clk 0:02:57]}  Bb4 {[%clk 0:02:33]} 12. O-O {[%clk 0:02:57]}  O-O {[%clk 0:02:31]} 13. Ne5 {[%clk 0:02:52]}  h6 {[%clk 0:01:53]} 14. h3 {[%clk 0:02:52]}  Qe7 {[%clk 0:01:40]} 15. Rac1 {[%clk 0:02:40]}  Rfd8 {[%clk 0:00:39]} 16. Qe2 {[%clk 0:02:38]}  Bc6 {[%clk 0:00:19]} 17. a3 {[%clk 0:02:31]}  Bxc3 {[%clk 0:00:18]} 18. Rxc3 {[%clk 0:02:32]}  Ba4 {[%clk 0:00:14]} 19. Rfc1 {[%clk 0:02:29]}  Rxc3 {[%clk 0:00:14]} 20. Rxc3 {[%clk 0:02:30]}  Nc6 {[%clk 0:00:14]} 21. b3 {[%clk 0:02:28]}  Nxd4 {[%clk 0:00:11]} 22. exd4 {[%clk 0:02:28]}  Be8 {[%clk 0:00:11]} 23. Qc2 {[%clk 0:02:28]}  Qxa3 {[%clk 0:00:11]} 24. g4 {[%clk 0:02:17]}  a6 {[%clk 0:00:08]} 25. g5 {[%clk 0:02:17]}  hxg5 {[%clk 0:00:07]} 26. Bxg5 {[%clk 0:02:18]}  Bb5 {[%clk 0:00:08]} 27. Bxb5 {[%clk 0:02:17]}  axb5 {[%clk 0:00:08]} 28. Rg3 {[%clk 0:02:10]}  Qe7 {[%clk 0:00:06]} 29. Ng4 {[%clk 0:02:08]}  Kh8 {[%clk 0:00:04]} 30. Bxf6 {[%clk 0:02:02]}  gxf6 {[%clk 0:00:03]} 31. Qd2 {[%clk 0:02:03]}  Qf8 {[%clk 0:00:03]} 32. Nxf6 {[%clk 0:02:03]}  Ra8 {[%clk 0:00:01]} 33. Qg5 {[%clk 0:02:01]} 1-0


[Site "https://www.chess.com"]

[Event "Titled Tuesday Blitz April 11 Early 2023"]
[White "tetrix83"]
[Black "Alekseenko, Kirill"]
[BlackFideId "4135539"]
[WhiteElo "2520"]
[BlackElo "2683"]
[Result "1-0"]
[Round "01"]
[TimeControl "180+2"]
[Date "2023.04.11"]
[WhiteClock "0:00:12"]
[BlackClock "0:00:01"]

1. e4 {[%clk 0:02:58]}  c5 {[%clk 0:02:57]} 2. Nf3 {[%clk 0:02:56]}  Nc6 {[%clk 0:02:58]} 3. Bb5 {[%clk 0:02:56]}  e6 {[%clk 0:02:55]} 4. O-O {[%clk 0:02:52]}  Nge7 {[%clk 0:02:54]} 5. Re1 {[%clk 0:02:50]}  Nd4 {[%clk 0:02:54]} 6. Nxd4 {[%clk 0:02:49]}  cxd4 {[%clk 0:02:55]} 7. c3 {[%clk 0:02:49]}  a6 {[%clk 0:02:56]} 8. Bf1 {[%clk 0:02:35]}  Nc6 {[%clk 0:02:56]} 9. d3 {[%clk 0:02:34]}  Bc5 {[%clk 0:02:49]} 10. Qg4 {[%clk 0:02:27]}  Qf6 {[%clk 0:02:37]} 11. c4 {[%clk 0:02:05]}  e5 {[%clk 0:02:03]} 12. f4 {[%clk 0:02:01]}  d5 {[%clk 0:01:47]} 13. f5 {[%clk 0:01:54]}  dxc4 {[%clk 0:01:47]} 14. dxc4 {[%clk 0:01:31]}  g6 {[%clk 0:01:44]} 15. Bg5 {[%clk 0:01:28]}  Qd6 {[%clk 0:01:41]} 16. Bd3 {[%clk 0:01:21]}  Nb4 {[%clk 0:01:31]} 17. Qe2 {[%clk 0:01:21]}  f6 {[%clk 0:01:15]} 18. Bh6 {[%clk 0:01:17]}  Rg8 {[%clk 0:01:09]} 19. Nd2 {[%clk 0:01:11]}  Bd7 {[%clk 0:01:00]} 20. a3 {[%clk 0:01:10]}  Nxd3 {[%clk 0:01:00]} 21. Qxd3 {[%clk 0:01:11]}  a5 {[%clk 0:00:43]} 22. b4 {[%clk 0:01:02]}  Ba7 {[%clk 0:00:30]} 23. c5 {[%clk 0:00:57]}  Qa6 {[%clk 0:00:30]} 24. Qb3 {[%clk 0:00:52]}  O-O-O {[%clk 0:00:29]} 25. Nc4 {[%clk 0:00:51]}  Kb8 {[%clk 0:00:20]} 26. Nd6 {[%clk 0:00:46]}  a4 {[%clk 0:00:21]} 27. Qf7 {[%clk 0:00:43]}  gxf5 {[%clk 0:00:21]} 28. Qxf6 {[%clk 0:00:25]}  fxe4 {[%clk 0:00:21]} 29. Qxe5 {[%clk 0:00:25]}  Ka8 {[%clk 0:00:22]} 30. Qxd4 {[%clk 0:00:24]}  Bc6 {[%clk 0:00:19]} 31. Rab1 {[%clk 0:00:23]}  Rg6 {[%clk 0:00:13]} 32. Bf4 {[%clk 0:00:19]}  e3 {[%clk 0:00:12]} 33. g3 {[%clk 0:00:18]}  b5 {[%clk 0:00:09]} 34. Qxe3 {[%clk 0:00:16]}  Rgxd6 {[%clk 0:00:06]} 35. Bxd6 {[%clk 0:00:16]}  Rxd6 {[%clk 0:00:07]} 36. Qe7 {[%clk 0:00:15]}  Rd7 {[%clk 0:00:07]} 37. Qf8+ {[%clk 0:00:14]}  Kb7 {[%clk 0:00:07]} 38. Re7 {[%clk 0:00:14]}  Bb8 {[%clk 0:00:05]} 39. Rd1 {[%clk 0:00:13]}  Kc7 {[%clk 0:00:02]} 40. Qf4+ {[%clk 0:00:12]}  Kc8 {[%clk 0:00:01]} 41. Re8+ {[%clk 0:00:12]}  Kb7 {[%clk 0:00:01]} 42. Qxb8# {[%clk 0:00:12]} 1-0


[Site "https://www.chess.com"]

[Event "Titled Tuesday Blitz April 11 Early 2023"]
[White "Martinez Alcantara, Jose Eduardo"]
[Black "Yelisieiev, Yevhenii"]
[WhiteFideId "3805662"]
[BlackFideId "14139642"]
[WhiteElo "2711"]
[BlackElo "2425"]
[Result "1-0"]
[Round "01"]
[TimeControl "180+2"]
[Date "2023.04.11"]
[WhiteClock "0:00:26"]
[BlackClock "0:00:04"]

1. e4 {[%clk 0:02:59]}  d6 {[%clk 0:02:58]} 2. d4 {[%clk 0:02:58]}  Nf6 {[%clk 0:02:57]} 3. Bd3 {[%clk 0:02:58]}  e5 {[%clk 0:02:57]} 4. Nf3 {[%clk 0:02:59]}  Nbd7 {[%clk 0:02:55]} 5. Nbd2 {[%clk 0:02:58]}  g6 {[%clk 0:02:54]} 6. c3 {[%clk 0:02:58]}  Bg7 {[%clk 0:02:54]} 7. O-O {[%clk 0:02:58]}  O-O {[%clk 0:02:55]} 8. Re1 {[%clk 0:02:59]}  b6 {[%clk 0:02:55]} 9. Nf1 {[%clk 0:02:58]}  Bb7 {[%clk 0:02:55]} 10. Ng3 {[%clk 0:02:59]}  Re8 {[%clk 0:02:55]} 11. d5 {[%clk 0:02:46]}  a5 {[%clk 0:02:53]} 12. c4 {[%clk 0:02:45]}  Nc5 {[%clk 0:02:51]} 13. Bc2 {[%clk 0:02:43]}  a4 {[%clk 0:02:51]} 14. Rb1 {[%clk 0:02:42]}  h5 {[%clk 0:02:45]} 15. Bg5 {[%clk 0:02:37]}  Qc8 {[%clk 0:02:41]} 16. b4 {[%clk 0:02:35]}  axb3 {[%clk 0:02:40]} 17. axb3 {[%clk 0:02:36]}  b5 {[%clk 0:02:03]} 18. cxb5 {[%clk 0:02:33]}  Qb8 {[%clk 0:01:56]} 19. Be3 {[%clk 0:02:19]}  Ncd7 {[%clk 0:01:51]} 20. h3 {[%clk 0:02:13]}  Bc8 {[%clk 0:01:51]} 21. Bd3 {[%clk 0:02:13]}  Nf8 {[%clk 0:01:40]} 22. Qe2 {[%clk 0:02:09]}  Bd7 {[%clk 0:01:41]} 23. Rec1 {[%clk 0:02:08]}  Qb7 {[%clk 0:01:39]} 24. b4 {[%clk 0:01:58]}  Reb8 {[%clk 0:01:39]} 25. b6 {[%clk 0:01:58]}  cxb6 {[%clk 0:01:35]} 26. Bb5 {[%clk 0:01:58]}  Ra3 {[%clk 0:01:27]} 27. Bc6 {[%clk 0:01:56]}  Qa7 {[%clk 0:01:22]} 28. b5 {[%clk 0:01:51]}  Bc8 {[%clk 0:01:19]} 29. Qb2 {[%clk 0:01:46]}  N8d7 {[%clk 0:01:17]} 30. Ra1 {[%clk 0:01:46]}  Rxa1 {[%clk 0:01:13]} 31. Rxa1 {[%clk 0:01:46]}  Qc7 {[%clk 0:01:14]} 32. Qc2 {[%clk 0:01:38]}  Nc5 {[%clk 0:01:14]} 33. Bxc5 {[%clk 0:01:37]}  dxc5 {[%clk 0:01:15]} 34. Nd2 {[%clk 0:01:37]}  Ne8 {[%clk 0:01:15]} 35. Nc4 {[%clk 0:01:37]}  Nd6 {[%clk 0:01:13]} 36. Nxd6 {[%clk 0:01:36]}  Qxd6 {[%clk 0:01:14]} 37. Nf1 {[%clk 0:01:32]}  Bh6 {[%clk 0:01:09]} 38. Ra7 {[%clk 0:01:28]}  Qf6 {[%clk 0:01:06]} 39. Qc3 {[%clk 0:01:25]}  Qf4 {[%clk 0:01:04]} 40. d6 {[%clk 0:01:23]}  Be6 {[%clk 0:00:59]} 41. d7 {[%clk 0:01:23]}  Rd8 {[%clk 0:01:00]} 42. Qd3 {[%clk 0:01:21]}  c4 {[%clk 0:00:55]} 43. Qd6 {[%clk 0:01:18]}  Qf6 {[%clk 0:00:49]} 44. Bd5 {[%clk 0:01:11]}  Bf8 {[%clk 0:00:42]} 45. Qc6 {[%clk 0:01:01]}  Bc5 {[%clk 0:00:42]} 46. Ne3 {[%clk 0:01:02]}  c3 {[%clk 0:00:38]} 47. Bxe6 {[%clk 0:01:00]}  c2 {[%clk 0:00:31]} 48. Ra1 {[%clk 0:00:45]}  Qxe6 {[%clk 0:00:27]} 49. Qxe6 {[%clk 0:00:41]}  fxe6 {[%clk 0:00:27]} 50. Nxc2 {[%clk 0:00:42]}  Rxd7 {[%clk 0:00:28]} 51. Ne1 {[%clk 0:00:42]}  Rd2 {[%clk 0:00:27]} 52. Nf3 {[%clk 0:00:41]}  Rxf2 {[%clk 0:00:27]} 53. Kh1 {[%clk 0:00:42]}  Re2 {[%clk 0:00:26]} 54. Ra4 {[%clk 0:00:37]}  Bd4 {[%clk 0:00:23]} 55. Nxd4 {[%clk 0:00:25]}  exd4 {[%clk 0:00:21]} 56. Rxd4 {[%clk 0:00:26]}  Rb2 {[%clk 0:00:20]} 57. Rd6 {[%clk 0:00:25]}  Rxb5 {[%clk 0:00:19]} 58. Rxe6 {[%clk 0:00:25]}  Kf7 {[%clk 0:00:18]} 59. Rc6 {[%clk 0:00:26]}  Rb1+ {[%clk 0:00:14]} 60. Kh2 {[%clk 0:00:26]}  b5 {[%clk 0:00:15]} 61. Kg3 {[%clk 0:00:26]}  b4 {[%clk 0:00:15]} 62. Rb6 {[%clk 0:00:25]}  b3 {[%clk 0:00:15]} 63. Kf4 {[%clk 0:00:25]}  Rg1 {[%clk 0:00:07]} 64. Ke5 {[%clk 0:00:25]}  Rxg2 {[%clk 0:00:07]} 65. Rb7+ {[%clk 0:00:26]}  Kg8 {[%clk 0:00:06]} 66. Rxb3 {[%clk 0:00:27]}  Kg7 {[%clk 0:00:06]} 67. Rd3 {[%clk 0:00:26]}  Kh6 {[%clk 0:00:05]} 68. Kd6 {[%clk 0:00:25]}  Re2 {[%clk 0:00:04]} 69. e5 {[%clk 0:00:25]}  Kg5 {[%clk 0:00:05]} 70. Rd4 {[%clk 0:00:25]}  Re3 {[%clk 0:00:04]} 71. h4+ {[%clk 0:00:23]}  Kf5 {[%clk 0:00:05]} 72. Rd5 {[%clk 0:00:24]}  Kg4 {[%clk 0:00:04]} 73. e6 {[%clk 0:00:24]}  Rxe6+ {[%clk 0:00:04]} 74. Kxe6 {[%clk 0:00:24]}  Kxh4 {[%clk 0:00:04]} 75. Kf6 {[%clk 0:00:22]}  Kg3 {[%clk 0:00:02]} 76. Kg5 {[%clk 0:00:23]}  h4 {[%clk 0:00:02]} 77. Rd3+ {[%clk 0:00:23]}  Kf2 {[%clk 0:00:01]} 78. Kxh4 {[%clk 0:00:24]}  Ke2 {[%clk 0:00:01]} 79. Rd5 {[%clk 0:00:25]}  Kf3 {[%clk 0:00:02]} 80. Rg5 {[%clk 0:00:25]}  Kf4 {[%clk 0:00:03]} 81. Rxg6 {[%clk 0:00:26]}  Ke4 {[%clk 0:00:04]} 82. Kg4 {[%clk 0:00:26]}  Kd4 {[%clk 0:00:04]} 83. Kf4 {[%clk 0:00:26]} 1-0


[Site "https://www.chess.com"]